bitfinex/quotes_ETHUSD_20251128
["timestamp","ask_amount","ask_price","bid_price","bid_amount"]
[1764299592327,6.03665372,3013.1,3013.0,0.8654]
[1764299592724,6.03665372,3013.1,3013.0,0.4107]
[1764299592924,7.18507051,3013.1,3013.0,0.4107]
[1764299593120,10.70461157,3013.1,3012.7,0.4749]
[1764299593325,1.3259045,3012.8,3012.7,0.4749]
[1764299593526,2.55785804,3012.8,3012.7,0.4749]
[1764299593736,2.55785804,3012.8,3012.7,0.9467]
[1764299595253,1.66263416,3012.8,3012.7,0.9467]
[1764299597282,1.33195354,3012.8,3012.7,0.9467]
[1764299597987,5.77702957,3012.8,3012.7,0.9467]
[1764299598166,5.87702957,3012.8,3012.7,0.9467]
[1764299598988,2.55785804,3012.8,3012.7,0.9467]
[1764299606990,3.55532281,3012.8,3012.7,0.9467]
[1764299612228,2.32941831,3012.8,3012.7,0.9467]
[1764299612430,2.22941831,3012.8,3012.7,0.9467]
[1764299612730,2.32941831,3012.8,3012.7,0.9467]
[1764299613830,2.33330587,3012.8,3012.7,0.9467]
[1764299616218,3.22852975,3012.8,3012.7,0.9467]
[1764299616419,2.33330587,3012.8,3012.7,0.9467]
[1764299616628,3.22852975,3012.8,3012.7,0.9467]
[1764299619513,1.2358411,3012.8,3012.7,0.9467]
[1764299620142,1.3358411,3012.8,3012.7,0.9467]
[1764299620447,1.33610799,3012.8,3012.7,0.9467]
[1764299625062,1.33610799,3012.8,3012.7,4.2659817]
[1764299626865,1.23610799,3012.8,3012.7,4.2659817]
[1764299627168,1.23610799,3012.8,3012.7,0.9467]
[1764299629765,1.66678861,3012.8,3012.7,0.5005]
[1764299629964,1.33610799,3012.8,3012.7,0.5005]
[1764299630339,1.83660799,3012.8,3012.7,0.5005]
[1764299633285,1.83651297,3012.8,3012.7,0.5005]
[1764299641267,1.73651297,3012.8,3012.7,0.9736]
[1764299641465,1.83651297,3012.8,3012.7,0.9736]
[1764299641961,1.83651297,3012.8,3012.7,0.001]
[1764299641962,4.20271033,3012.8,3012.7,0.001]
[1764299642197,8.1138131,3012.8,3012.7,0.001]
[1764299642698,8.44449372,3012.8,3012.7,0.001]
[1764299644168,7.2541386,3012.8,3012.7,0.001]
[1764299644506,3.60428645,3012.8,3012.7,0.001]
[1764299644676,3.63816707,3012.8,3012.7,0.001]
[1764299644877,6.9573386,3012.8,3012.7,0.001]
[1764299645076,7.2541386,3012.8,3012.7,0.001]
[1764299648608,6.9573386,3012.8,3012.7,0.001]
[1764299652526,6.62665798,3012.8,3012.7,0.001]
[1764299652687,8.44449372,3012.8,3012.7,0.001]
[1764299654206,7.2541386,3012.8,3012.7,0.001]
[1764299655080,7.2541386,3012.8,3012.7,0.4594]
[1764299655081,1.52651297,3012.8,3012.7,0.4594]
[1764299655284,1.12601297,3012.8,3012.7,5.12513328]
[1764299655512,1.12601297,3012.8,3012.7,0.9133]
[1764299656013,1.12815957,3012.8,3012.7,0.9133]
[1764299656908,1.12815957,3012.8,3012.7,0.001]
[1764299657113,1.12815957,3012.8,3012.7,0.4594]
[1764299659202,1.12815957,3012.8,3012.7,0.001]
[1764299659203,6.04117546,3012.8,3012.7,0.001]
[1764299659402,7.423246,3012.8,3012.7,0.001]
[1764299659609,7.882646,3012.8,3012.7,0.001]
[1764299661291,6.98657546,3012.8,3012.7,0.001]
[1764299666396,7.38148895,3012.8,3012.7,0.001]
[1764299666598,8.90252469,3012.8,3012.7,0.001]
[1764299668420,1.13109811,3012.7,3011.1,0.72559411]
[1764299668629,0.1,3012.2,3011.9,0.75320239]
[1764299668831,0.31130314,3012.1,3011.9,0.75320239]
[1764299669129,0.31130314,3012.0,3011.9,0.75320239]
[1764299669319,0.41130314,3012.0,3011.9,0.75320239]
[1764299669521,0.41130314,3012.0,3011.9,4.53176574]
[1764299670231,0.31130314,3012.0,3011.9,4.53176574]
[1764299670432,0.31130314,3012.0,3011.9,4.98566574]
[1764299673441,0.41130314,3012.0,3011.9,4.98566574]
[1764299673950,0.41130314,3012.0,3011.9,1.21160239]
[1764299674134,1.40892049,3012.0,3011.9,0.4584]
[1764299674650,1.40892049,3012.0,3011.9,0.9123]
[1764299674851,1.40892049,3012.0,3011.9,4.23246335]
[1764299677749,1.30892049,3012.0,3011.9,3.77856335]
[1764299677957,8.54183106,3012.0,3011.0,0.6448]
[1764299678250,0.1,3011.5,3011.1,3.77494546]
[1764299678453,0.31130314,3011.4,3011.1,7.09599092]
[1764299678644,0.31130314,3011.3,3011.2,0.4539]
[1764299679049,1.02856294,3011.3,3011.2,0.9123]
[1764299679227,1.12856294,3011.3,3011.2,0.9123]
[1764299680455,1.12856294,3011.3,3011.2,4.23323517]
[1764299683840,1.12856294,3011.3,3011.1,3.32104522]
[1764299684169,0.31130314,3011.2,3011.1,3.67233974]
[1764299686843,0.31130314,3011.2,3011.1,3.70555019]
[1764299687777,0.002,3012.0,3011.1,11.07323522]
[1764299687978,0.102,3012.0,3011.9,4.10814826]
[1764299688273,0.41252925,3012.0,3011.9,4.10814826]
[1764299688846,0.41252925,3012.0,3011.9,7.42831161]
[1764299690486,0.31252925,3012.0,3011.9,7.42831161]
[1764299691547,0.31252925,3012.0,3011.9,8.08479555]
[1764299692383,0.31252925,3012.0,3011.9,3.97664729]
[1764299694308,0.002,3012.4,3012.0,0.72559411]
[1764299694491,0.002,3012.4,3012.3,4.83374237]
[1764299694692,0.002,3012.4,3012.3,5.33811661]
[1764299695302,0.002,3012.4,3012.3,8.86783908]
[1764299699434,0.9604,3012.4,3010.7,0.29717822]
[1764299699633,0.9604,3012.4,3009.4,0.01967747]
[1764299699634,0.39,3010.2,3009.4,0.01967747]
[1764299699927,0.39,3010.2,3007.1,0.1805]
[1764299699928,0.1,3008.5,3006.7,4.10814826]
[1764299700230,0.214,3008.4,3007.5,4.10814826]
[1764299700393,0.71498828,3008.3,3007.6,0.0332491]
[1764299700579,1.78579462,3007.7,3007.4,0.1575]
[1764299700779,0.71498828,3007.6,3007.4,0.1575]
[1764299701021,0.71498828,3007.6,3006.7,0.214]
[1764299701022,0.71498828,3007.5,3006.7,0.214]
[1764299701202,1.78841649,3006.9,3005.9,1.13995941]
[1764299701402,1.60912402,3006.8,3006.0,0.1]
[1764299701588,1.60912402,3006.8,3005.9,3.4677852]
[1764299701589,0.89413574,3006.4,3005.9,0.141]
[1764299701791,0.71498828,3006.3,3005.9,0.141]
[1764299701979,0.89413574,3006.0,3005.9,0.141]
[1764299702187,1.60912402,3006.0,3005.9,0.141]
[1764299702380,0.71498828,3006.0,3005.9,0.423]
[1764299702579,1.60219218,3006.0,3005.9,0.423]
[1764299702794,0.71498828,3006.0,3005.9,0.423]
[1764299702998,1.90716927,3006.0,3005.9,0.423]
[1764299703291,0.71498828,3006.0,3005.9,0.423]
[1764299704106,2.48420277,3006.0,3005.9,0.423]
[1764299704290,1.71437032,3006.0,3005.9,0.423]
[1764299705315,0.71498828,3006.0,3005.9,1.14859411]
[1764299705523,0.71498828,3006.0,3005.9,0.423]
[1764299705885,0.71498828,3006.0,3005.9,0.8705601]
[1764299706624,0.71498828,3006.0,3005.9,0.423]
[1764299707520,3.05759308,3006.0,3005.9,0.423]
[1764299708101,3.04538623,3006.0,3005.9,1.14859411]
[1764299708297,0.70278143,3006.0,3005.7,3.32701201]
[1764299708497,0.70278143,3005.9,3005.7,3.32701201]
[1764299708705,2.33984657,3006.1,3005.8,0.3327012]
[1764299708923,0.70194726,3006.0,3005.8,0.3327012]
[1764299709140,0.70194726,3005.9,3005.8,0.3327012]
[1764299709436,0.70194726,3005.9,3005.8,0.36597021]
[1764299709588,1.75290882,3006.1,3005.9,0.405504]
[1764299709794,1.75290882,3006.0,3005.9,3.32679064]
[1764299709990,1.75290882,3006.1,3005.9,4.04692045]
[1764299710316,2.33984657,3006.3,3005.9,0.72012981]
[1764299710507,0.215,3006.8,3003.9,3.32890752]
[1764299710508,0.4792,3006.0,3003.9,3.32890752]
[1764299710713,0.87592554,3005.7,3004.7,0.1]
[1764299711016,1.16790072,3005.9,3004.8,0.24828008]
[1764299711017,0.87592554,3005.6,3004.8,0.24828008]
[1764299711388,0.31499999,3005.9,3004.8,0.24828008]
[1764299711389,0.87592554,3005.5,3004.8,0.215]
[1764299711616,0.87592554,3005.8,3004.8,0.215]
[1764299711917,0.99956851,3005.7,3004.9,3.32789776]
[1764299712116,0.87592554,3005.2,3005.0,0.38756765]
[1764299712338,0.87592554,3005.1,3005.0,0.03327787]
[1764299712823,0.87592554,3005.1,3004.8,0.215]
[1764299712824,0.87592554,3005.1,3004.8,3.32796215]
[1764299713030,0.87592554,3005.0,3004.6,3.32823004]
[1764299713316,0.87592554,3004.9,3004.6,6.65646008]
[1764299713511,0.87592554,3005.1,3004.7,1.41274012]
[1764299714012,0.87592554,3005.1,3004.9,0.72559411]
[1764299714214,0.87592554,3005.3,3004.9,0.72559411]
[1764299714403,0.87592554,3005.1,3004.9,0.72559411]
[1764299714717,0.87592554,3005.2,3004.9,0.72559411]
[1764299715018,0.87592554,3005.2,3005.0,0.40536026]
[1764299715326,0.87592554,3005.1,3005.0,0.40536026]
[1764299715526,0.87592554,3005.1,3004.7,0.68714601]
[1764299715527,0.4503,3005.0,3004.7,0.68714601]
[1764299715827,1.32287785,3005.0,3004.3,6.65712478]
[1764299716033,1.8043817,3005.1,3003.9,3.32900018]
[1764299716034,0.87257785,3004.9,3003.9,3.32900018]
[1764299716325,0.87257785,3004.9,3004.0,0.72559411]
[1764299716497,0.87257785,3005.0,3004.2,0.405504]
[1764299716697,0.87257785,3005.9,3004.6,0.001]
[1764299716901,1.91317195,3005.9,3004.8,1.23109811]
[1764299717226,1.91317195,3005.9,3004.9,0.7107204]
[1764299717529,1.08757785,3005.9,3004.9,0.7107204]
[1764299717739,0.215,3005.9,3004.9,0.7107204]
[1764299718038,0.31499999,3005.9,3005.1,0.72559411]
[1764299718188,0.51219999,3005.9,3005.1,0.72559411]
[1764299718387,0.51219999,3005.9,3005.2,1.07089552]
[1764299718831,0.29719999,3005.9,3005.2,1.07089552]
[1764299719133,0.09999999,3005.9,3005.2,1.07089552]
[1764299719583,1.21447194,3006.1,3005.2,1.07089552]
[1764299719790,1.21447194,3006.1,3005.2,1.02406852]
[1764299719990,1.21447194,3006.1,3005.4,0.72559411]
[1764299720202,0.09999999,3005.9,3005.4,0.72559411]
[1764299720692,1.70407194,3006.1,3005.4,0.72559411]
[1764299720890,0.09999999,3005.9,3005.4,0.72559411]
[1764299721083,1.70407194,3006.1,3005.4,0.72559411]
[1764299721308,0.09999999,3005.9,3005.5,0.755547]
[1764299721500,0.4896,3006.0,3005.5,0.755547]
[1764299721702,0.79865818,3005.9,3005.5,0.755547]
[1764299721889,0.09999999,3005.9,3005.6,3.3271227]
[1764299722207,0.69904387,3005.8,3005.6,3.3271227]
[1764299722514,0.78679999,3005.9,3005.7,0.74098558]
[1764299722720,0.69926997,3005.8,3005.7,0.74098558]
[1764299723621,1.14956997,3005.8,3005.7,0.74098558]
[1764299724112,0.69926997,3005.8,3005.7,4.06799759]
[1764299724887,0.09999999,3005.9,3005.7,4.8935917]
[1764299725094,0.87257785,3006.4,3005.8,1.62045728]
[1764299725400,0.87257785,3006.6,3005.8,2.61950319]
[1764299725806,0.1972,3006.9,3005.8,2.61950319]
[1764299726008,0.1972,3006.9,3006.0,0.72559411]
[1764299726191,0.31499999,3006.8,3006.0,0.72559411]
[1764299726391,0.41499999,3006.8,3006.1,1.0705966]
[1764299726612,0.09999999,3006.4,3005.9,0.72559411]
[1764299726942,0.4503,3006.0,3005.8,3.81623692]
[1764299727138,0.6475,3005.9,3005.4,3.32725991]
[1764299727337,0.4503,3005.7,3005.4,3.32725991]
[1764299727538,0.4503,3005.7,3005.4,3.99273233]
[1764299727715,0.9399,3005.7,3005.4,3.99273233]
[1764299728234,0.87257785,3005.5,3005.4,4.71832644]
[1764299728938,1.65750072,3005.7,3005.4,4.71832644]
[1764299728939,0.87257785,3005.7,3005.4,4.71832644]
[1764299729137,2.33984657,3005.8,3005.5,0.47183264]
[1764299729339,2.33984657,3005.8,3005.4,11.37301466]
[1764299729340,0.31063929,3005.7,3005.4,11.37301466]
[1764299729555,2.33984657,3005.8,3005.4,11.37301466]
[1764299729556,0.31063929,3005.6,3005.4,8.04567055]
[1764299729838,0.31063929,3005.5,3005.4,4.67618214]
[1764299730723,0.31063929,3005.5,3005.4,4.29688344]
[1764299739710,0.002,3005.9,3005.5,1.13109811]
[1764299739937,0.002,3005.9,3005.7,1.23109811]
[1764299740115,0.002,3005.9,3005.8,0.34726901]
[1764299740309,0.002,3005.9,3005.8,0.65277301]
[1764299740517,0.002,3005.9,3005.8,4.77199943]
[1764299740933,0.89461969,3007.3,3006.3,0.405504]
[1764299741240,0.2002,3007.4,3006.6,0.72559411]
[1764299741443,0.2002,3007.4,3006.7,0.73337503]
[1764299741646,0.2002,3007.4,3006.8,0.1]
[1764299741811,0.002,3007.4,3006.8,0.314]
[1764299742642,0.002,3007.4,3007.0,0.72559411]
[1764299743014,0.002,3007.4,3007.3,0.1]
[1764299743216,0.002,3007.4,3007.3,0.405504]
[1764299743616,0.002,3007.4,3007.3,0.505504]
[1764299744218,0.002,3007.4,3007.3,4.55634002]
[1764299744442,0.002,3007.4,3007.3,5.36590992]
[1764299745345,0.002,3007.8,3007.5,0.736504]
[1764299745550,0.002,3007.8,3007.7,6.73925425]
[1764299746069,0.002,3007.8,3007.7,6.83925425]
[1764299746281,0.002,3007.8,3007.7,10.76937936]
[1764299746427,0.002,3007.8,3007.7,10.86937936]
[1764299747565,0.002,3007.8,3007.7,10.76937936]
[1764299747731,0.002,3007.8,3007.7,10.86937936]
[1764299748057,0.002,3007.8,3007.7,10.76937936]
[1764299748355,0.002,3007.8,3007.7,10.36387536]
[1764299748746,0.002,3007.8,3007.7,10.46387536]
[1764299749053,0.002,3007.8,3007.7,10.36387536]
[1764299749257,0.002,3007.8,3007.7,10.46387536]
[1764299749461,0.002,3007.8,3007.7,10.36387536]
[1764299749628,0.002,3007.8,3007.7,10.46387536]
[1764299750029,0.002,3007.8,3007.7,10.36387536]
[1764299750231,0.002,3007.8,3007.7,10.46387536]
[1764299751330,0.002,3007.8,3007.7,14.28387536]
[1764299752550,0.002,3007.8,3007.7,14.18387536]
[1764299753860,0.002,3007.8,3007.7,14.28387536]
[1764299754367,0.002,3007.8,3007.7,14.18387536]
[1764299755267,0.002,3007.8,3007.7,14.28387536]
[1764299756437,0.002,3007.8,3007.4,0.001]
[1764299757166,0.002,3007.8,3007.4,0.03425131]
[1764299757390,0.002,3007.8,3007.7,0.1]
[1764299757879,0.002,3007.8,3007.7,6.76475025]
[1764299758048,0.002,3007.8,3007.7,6.43375025]
[1764299758252,0.002,3007.8,3007.7,7.11037327]
[1764299758459,0.002,3007.8,3007.7,7.07712528]
[1764299758678,0.002,3007.8,3007.7,10.40192496]
[1764299759388,0.002,3007.8,3007.7,10.73292496]
[1764299759678,0.002,3007.8,3007.7,10.40192496]
[1764299761465,0.002,3007.8,3007.7,14.62742896]
[1764299761786,0.1907,3009.4,3007.9,0.405504]
[1764299761996,0.1907,3009.4,3009.0,0.72559411]
[1764299761997,0.76419999,3009.4,3009.0,0.72559411]
[1764299762452,0.4535,3009.1,3009.0,0.72559411]
[1764299762786,0.4535,3009.1,3009.0,4.04895735]
[1764299762986,0.927,3009.1,3009.0,4.04895735]
[1764299764257,0.927,3009.1,3008.9,0.03323473]
[1764299764258,1.02699999,3009.1,3008.9,0.03323473]
[1764299764561,1.02699999,3009.1,3008.1,0.1]
[1764299764562,0.927,3009.0,3008.1,0.1]
[1764299764772,0.4535,3008.5,3008.1,0.1]
[1764299764970,0.4535,3008.5,3008.3,0.72559411]
[1764299765178,0.4535,3008.5,3008.4,0.03324026]
[1764299765399,0.4535,3008.5,3008.3,0.72559411]
[1764299766265,0.4535,3008.5,3008.3,1.18014151]
[1764299766266,0.4535,3008.4,3008.3,1.18014151]
[1764299766668,0.927,3008.4,3008.3,1.18014151]
[1764299766971,0.4535,3008.4,3008.3,4.04973066]
[1764299767275,0.927,3008.4,3008.3,4.04973066]
[1764299767891,0.927,3008.4,3007.8,3.32468914]
[1764299767892,1.02699999,3008.4,3007.5,9.97506234]
[1764299768082,1.23639878,3008.3,3007.5,9.97506234]
[1764299768279,0.6442,3007.6,3007.5,3.32502078]
[1764299768788,1.1177,3007.6,3007.5,3.32502078]
[1764299768986,1.1177,3007.6,3007.4,0.001]
[1764299769191,0.927,3007.5,3007.4,0.001]
[1764299771386,0.927,3007.5,3007.4,3.32613134]
[1764299772423,1.02699999,3007.5,3007.4,3.32613134]
[1764299773505,1.02699999,3007.5,3007.4,0.001]
[1764299774913,0.927,3007.5,3007.4,0.001]
[1764299775113,1.02699999,3007.5,3007.4,0.001]
[1764299775692,0.55349999,3007.5,3007.4,0.001]
[1764299775909,1.01889999,3007.5,3007.4,0.001]
[1764299777487,1.01889999,3007.5,3007.4,3.32613134]
[1764299778919,0.55349999,3007.5,3007.4,3.32613134]
[1764299779095,1.01889999,3007.5,3007.4,3.32613134]
[1764299779418,1.42923276,3007.5,3007.4,0.001]
[1764299780120,1.32923276,3007.5,3007.4,0.001]
[1764299781616,1.51252604,3007.5,3007.4,0.001]
[1764299782325,1.20219327,3007.5,3007.4,0.001]
[1764299783787,1.5123057,3007.5,3007.4,0.001]
[1764299784322,1.6123057,3007.5,3007.4,0.001]
[1764299787400,1.30219327,3007.5,3007.4,0.001]
[1764299789245,1.61213643,3007.5,3007.4,0.001]
[1764299789395,1.94281705,3007.5,3007.4,0.001]
[1764299789595,4.84281705,3007.5,3007.4,0.001]
[1764299789833,4.91764043,3007.5,3007.4,0.001]
[1764299789997,8.14266121,3007.5,3007.0,0.001]
[1764299790333,0.65909999,3007.1,3007.0,0.001]
[1764299790547,1.58754715,3007.1,3007.0,0.001]
[1764299790824,1.64744315,3007.1,3007.0,0.001]
[1764299791056,1.43444315,3007.1,3007.0,0.001]
[1764299791412,1.64744315,3007.1,3007.0,0.001]
[1764299791598,1.88474688,3007.1,3007.0,0.001]
[1764299792302,1.67174688,3007.1,3007.0,0.001]
[1764299792498,1.88474688,3007.1,3007.0,0.001]
[1764299792829,0.77209999,3007.1,3007.0,0.001]
[1764299793201,1.23749999,3007.1,3007.0,0.001]
[1764299794201,1.54772511,3007.1,3007.0,0.001]
[1764299795432,1.64772511,3007.1,3007.0,0.001]
[1764299796619,1.54772511,3007.1,3007.0,0.001]
[1764299797926,1.33472511,3007.1,3007.0,0.001]
[1764299798125,1.54772511,3007.1,3007.0,0.001]
[1764299800041,0.86932511,3007.1,3007.0,0.001]
[1764299800246,1.08232511,3007.1,3007.0,0.001]
[1764299801108,1.08232511,3007.1,3007.0,0.03425573]
[1764299801418,1.08232511,3007.1,3007.0,0.001]
[1764299802026,0.98232512,3007.1,3007.0,0.001]
[1764299802335,1.54422511,3007.1,3007.0,0.001]
[1764299807327,1.33122511,3007.1,3007.0,0.001]
[1764299807523,1.08232511,3007.1,3007.0,0.03425573]
[1764299809325,1.08232511,3007.1,3007.0,3.35982939]
[1764299810624,1.08232511,3007.1,3007.0,3.32657366]
[1764299811655,1.08232511,3007.1,3007.0,0.001]
[1764299812558,0.98232512,3007.1,3007.0,0.001]
[1764299812757,1.08232511,3007.1,3007.0,0.001]
[1764299813260,0.52322512,3007.1,3007.0,0.219]
[1764299813423,0.31022512,3007.1,3007.0,0.219]
[1764299813632,0.31022512,3007.1,3007.0,3.76257366]
[1764299813852,0.31022512,3007.1,3007.0,4.47472492]
[1764299814231,0.31022512,3007.1,3007.0,4.50798065]
[1764299815548,0.31022512,3007.1,3007.0,4.25672492]
[1764299816137,0.31022512,3007.1,3007.0,4.28998065]
[1764299816658,0.31022512,3007.1,3007.0,9.02031903]
[1764299818335,0.31022512,3007.1,3007.0,8.80231903]
[1764299818549,0.31022512,3007.1,3007.0,13.13972004]
[1764299818948,0.002,3007.4,3007.0,19.79086736]
[1764299819158,0.002,3007.4,3007.3,0.218]
[1764299819461,0.31347011,3007.4,3007.3,0.218]
[1764299820163,0.31347011,3007.4,3007.3,3.54324191]
[1764299820334,0.31347011,3007.4,3007.3,7.91389533]
[1764299820535,0.31347011,3007.4,3007.3,7.88064292]
[1764299820748,0.31343995,3007.4,3007.3,9.2334077]
[1764299821144,0.31343995,3007.4,3007.3,9.84100181]
[1764299821441,0.002,3007.4,3007.3,10.39000181]
[1764299821640,0.002,3007.4,3007.3,9.74100181]
[1764299822162,0.002,3007.4,3007.3,9.52300181]
[1764299822332,0.002,3007.4,3007.3,5.6216008]
[1764299822665,0.002,3007.4,3007.3,9.77425422]
[1764299822961,0.002,3007.4,3007.3,9.74100181]
[1764299823565,0.002,3007.4,3007.3,9.95900181]
[1764299823744,0.002,3007.4,3007.3,10.05900181]
[1764299824681,0.002,3007.4,3007.3,9.95900181]
[1764299824884,0.002,3007.4,3007.3,13.87900181]
[1764299827370,0.002,3007.4,3007.3,13.77900181]
[1764299827572,0.002,3008.3,3007.4,1.13109811]
[1764299827745,0.002,3008.3,3008.2,0.218]
[1764299828251,0.002,3008.3,3008.2,4.26784116]
[1764299828451,0.9353,3008.3,3008.2,3.32424705]
[1764299828846,1.24582828,3008.3,3008.2,3.32424705]
[1764299829238,0.9353,3008.3,3008.2,3.32424705]
[1764299829674,1.03529999,3008.3,3008.2,3.32424705]
[1764299829880,1.34574326,3008.3,3008.2,3.32424705]
[1764299830264,1.34574326,3008.3,3007.8,3.32458464]
[1764299830579,0.4789,3007.9,3007.7,6.64959936]
[1764299830780,0.4789,3007.9,3007.7,8.45189598]
[1764299831146,0.4789,3007.8,3007.7,3.32479968]
[1764299831648,0.09999999,3007.8,3007.7,3.32479968]
[1764299831976,0.57889999,3007.8,3007.7,3.32479968]
[1764299832588,0.4789,3007.8,3007.7,3.32479968]
[1764299832774,1.03009999,3007.8,3007.7,3.32479968]
[1764299833404,0.4789,3007.8,3007.7,3.35804767]
[1764299833577,0.09999999,3007.8,3007.7,3.32479968]
[1764299833896,0.002,3008.3,3007.8,0.72559411]
[1764299834102,0.002,3008.3,3008.0,4.11940101]
[1764299834697,0.002,3008.3,3008.2,0.218]
[1764299834868,0.002,3008.3,3008.2,0.97683658]
[1764299835068,0.002,3008.3,3008.2,0.94359411]
[1764299835276,0.002,3008.3,3008.2,2.1910076]
[1764299835670,0.002,3008.3,3008.2,2.15776513]
[1764299835886,0.002,3008.3,3008.2,2.5090076]
[1764299836276,0.002,3008.3,3008.2,2.4090076]
[1764299836795,0.002,3008.3,3008.2,5.83325465]
[1764299836995,0.002,3008.3,3008.2,5.70001218]
[1764299837195,0.002,3008.3,3008.2,6.10551618]
[1764299837599,0.002,3008.3,3008.2,6.13875865]
[1764299837907,0.002,3008.3,3008.2,6.23875865]
[1764299838262,0.002,3008.3,3008.2,6.20551618]
[1764299839101,0.002,3008.3,3008.2,6.23875865]
[1764299840324,0.002,3008.5,3008.2,9.8940057]
[1764299840634,0.002,3008.5,3008.4,4.43740101]
[1764299840833,0.4532,3008.5,3008.2,6.6484941]
[1764299840990,0.461,3008.4,3008.3,0.72559411]
[1764299841629,1.01219999,3008.4,3008.2,6.6484941]
[1764299841832,0.461,3008.3,3008.2,7.86984116]
[1764299843008,0.9122,3008.3,3008.2,3.32424705]
[1764299844483,0.09999999,3008.2,3008.1,3.32435756]
[1764299844684,1.01219999,3008.2,3008.1,3.32435756]
[1764299845212,1.01219999,3008.2,3008.1,3.35760113]
[1764299845586,1.01219999,3008.2,3008.1,3.32435756]
[1764299846792,1.01219999,3008.2,3008.1,3.35760113]
[1764299847202,1.01219999,3008.2,3008.1,3.35860113]
[1764299848511,0.56099999,3008.2,3008.1,3.35860113]
[1764299848700,0.002,3008.3,3008.1,6.90095869]
[1764299848904,0.002,3008.3,3008.1,6.86771512]
[1764299849212,0.002,3008.3,3008.2,0.03324247]
[1764299849715,0.463,3008.3,3008.2,0.03324247]
[1764299850610,0.002,3008.3,3008.2,4.57622116]
[1764299851281,0.463,3008.3,3008.2,3.35748952]
[1764299851480,0.9142,3008.3,3008.2,3.32424705]
[1764299853638,0.9142,3008.3,3008.1,6.64971512]
[1764299853842,0.461,3008.2,3008.1,4.05095167]
[1764299855617,0.9122,3008.2,3008.1,4.05095167]
[1764299857420,0.9122,3008.2,3008.1,7.87095167]
[1764299862107,1.01219999,3008.2,3008.1,7.14535756]
[1764299862310,1.32335659,3008.2,3008.1,0.001]
[1764299863044,1.42335659,3008.2,3008.1,0.001]
[1764299864735,1.32335659,3008.2,3008.1,0.001]
[1764299866410,1.53435659,3008.2,3008.1,0.001]
[1764299867706,1.4343566,3008.2,3008.1,0.001]
[1764299867910,1.53435659,3008.2,3008.1,0.001]
[1764299868234,0.002,3008.3,3008.1,0.328]
[1764299868436,0.4739,3008.2,3008.1,4.09905716]
[1764299868745,0.4739,3008.2,3008.1,3.32535756]
[1764299868913,0.9322,3008.2,3008.1,3.32535756]
[1764299869514,1.03219999,3008.2,3008.1,3.32535756]
[1764299870214,1.34333673,3008.2,3008.1,3.32535756]
[1764299870419,0.002,3008.3,3008.1,6.86771512]
[1764299870624,0.002,3008.3,3008.2,1.65965023]
[1764299870942,0.31313199,3008.3,3008.2,1.65965023]
[1764299871114,0.41313198,3008.3,3008.2,1.65965023]
[1764299872517,0.41313198,3008.3,3008.2,4.98389728]
[1764299873532,0.41313198,3008.3,3008.2,3.32424705]
[1764299873533,1.34533198,3008.3,3008.2,3.32424705]
[1764299874647,1.34533198,3008.3,3008.1,6.64971512]
[1764299874837,0.78503199,3008.2,3008.1,3.32535756]
[1764299875842,1.24333199,3008.2,3008.1,3.32535756]
[1764299876353,0.78503199,3008.2,3008.1,3.32535756]
[1764299877257,1.24333199,3008.2,3008.1,3.32535756]
[1764299878047,1.34333198,3008.2,3008.1,3.32535756]
[1764299881436,0.09999999,3008.2,3008.1,4.79914107]
[1764299881754,0.41120778,3008.2,3008.1,4.79914107]
[1764299883135,0.41120778,3008.2,3008.1,4.58114107]
[1764299883679,1.34340778,3008.2,3008.1,3.35860113]
[1764299884262,0.41120778,3008.2,3008.1,3.35860113]
[1764299884450,0.41120778,3008.2,3008.1,3.54335756]
[1764299885237,0.41120778,3008.2,3008.1,3.76135756]
[1764299885537,0.41120778,3008.2,3008.1,3.54335756]
[1764299890244,0.41120778,3008.2,3008.1,5.034572]
[1764299894341,0.41120778,3008.2,3008.1,5.252572]
[1764299895971,0.41120778,3008.2,3008.1,5.034572]
[1764299896774,0.41120778,3008.2,3008.1,4.816572]
[1764299897162,0.41120778,3008.2,3008.1,5.034572]
[1764299898178,0.31120779,3008.2,3008.1,6.11140968]
[1764299898475,0.002,3008.3,3008.2,4.04984116]
[1764299898677,0.31381733,3008.3,3008.2,6.47529316]
[1764299898880,0.31381733,3008.3,3008.2,6.69329316]
[1764299899259,0.002,3008.3,3008.2,6.69329316]
[1764299899484,0.002,3008.3,3008.2,10.91661317]
[1764299899669,0.3137347,3008.3,3008.2,10.91661317]
[1764299899869,0.3137347,3008.3,3008.2,10.81661317]
[1764299900255,1.37923469,3008.3,3008.2,6.15729316]
[1764299900450,0.90083469,3008.3,3008.2,10.38061317]
[1764299900862,0.41373469,3008.3,3008.2,10.59861317]
[1764299901273,0.41368255,3008.3,3008.2,10.59861317]
[1764299902064,0.31368256,3008.3,3008.2,14.41861317]
[1764299902270,0.41368255,3008.3,3008.2,14.41861317]
[1764299902793,0.90078255,3008.3,3008.2,14.20061317]
[1764299903168,1.37918255,3008.3,3008.2,14.20061317]
[1764299903587,0.41368255,3008.3,3008.2,14.41861317]
[1764299904591,0.31368256,3008.3,3008.2,14.51861317]
[1764299904791,0.002,3008.3,3008.2,15.8307412]
[1764299904972,0.002,3008.3,3008.2,14.73661317]
[1764299906490,0.002,3008.3,3008.2,15.47311717]
[1764299907072,0.002,3008.3,3008.2,15.14211717]
[1764299907269,0.002,3008.3,3008.2,14.41861317]
[1764299907476,0.002,3008.3,3008.2,14.20061317]
[1764299907682,0.002,3008.3,3008.2,15.6102427]
[1764299907966,0.002,3008.3,3008.2,14.41861317]
[1764299908162,0.002,3008.3,3008.2,15.8282427]
[1764299908372,0.002,3008.3,3008.2,15.06761317]
[1764299909390,0.002,3008.3,3008.2,16.25847023]
[1764299909557,0.002,3008.3,3008.2,16.66397423]
[1764299909763,0.002,3008.5,3008.3,0.405504]
[1764299909992,0.002,3008.5,3008.4,8.95123908]
[1764299910164,0.002,3008.5,3008.4,9.16923908]
[1764299910489,0.002,3008.5,3008.4,12.82426514]
[1764299910692,0.002,3008.9,3008.8,0.1]
[1764299910897,0.002,3008.9,3008.8,5.30014996]